Cogmind - Beta 14 @@@ ROGUE MODE // 2024.10.14 @ 01:51:18 Player: Destravous Result: Destroyed by S-10 Pest with Light Assault Rifle Performance ------------- Evolutions (0) 0 Regions Visited (2) 400 Robots Destroyed (20) 100 Value Destroyed (439) 439 Prototype IDs (11) 220 Alien Tech Used (0) 0 Bonus (0) 0 TOTAL SCORE: 1159 Bonus ------- None Cogmind --------- Core Integrity 0/250 Matter 204/300 Energy 180/180 System Corruption 5% Temperature Cool (0) Movement Walking (190) Ox1 Location -10/Subcaves Parts ------- > --- POWER (1) -------- Meta Core > --- PROPULSION (2+1) - Aluminum Leg Flight Unit > --- UTILITY (2+1) ---- Structural Scanner Signal Interpreter > --- WEAPON (2+1) ----- Heavy Riot Gun > --- INVENTORY (5) ---- Subdweller Power Source Flight Unit Flight Unit Small Storage Unit Peak State ------------ > --- POWER ------------ Meta Core > --- PROPULSION ------- Flight Unit Flight Unit > --- UTILITY ---------- Structural Scanner Signal Interpreter > --- WEAPON ----------- Heavy Riot Gun > --- INVENTORY -------- Subdweller Power Source Aluminum Leg Small Storage Unit Subdweller Laser [Rating: 21] Favorites ----------- Power Ion Engine Engine Ion Engine Power Core Meta Core Propulsion Aluminum Leg Leg Aluminum Leg Flight Unit Flight Unit Utility Structural Scanner Device Structural Scanner Storage Small Storage Unit Processor Signal Interpreter Weapon Medium Laser Energy Gun Medium Laser Ballistic Gun Assault Rifle Build | -11 -10 -10 ------- Run | Yrd Mat Sub Slots Evolved . | . . . Power . | . . . Propulsion . | . . . Utility . | . . . Weapon . | . . . Parts Attached 20 | . 10 10 Power 2 | . . 2 Engine . | . . . Core 2 | . . 2 Reactor . | . . . Propulsion 7 | . 4 3 Treads . | . . . Leg 3 | . 2 1 Wheel . | . . . Hover . | . . . Flight 4 | . 2 2 Utility 3 | . 2 1 Device 2 | . 1 1 Storage . | . . . Processor 1 | . 1 . Hackware . | . . . Protection . | . . . Artifact . | . . . Weapon 8 | . 4 4 Energy Gun 8 | . 4 4 Energy Cannon . | . . . Ballistic Gun . | . . . Ballistic Cannon . | . . . Launcher . | . . . Special Weapon . | . . . Impact Weapon . | . . . Slashing Weapon . | . . . Piercing Weapon . | . . . Special Melee Weapon . | . . . Unidentified Prototypes . | . . . Corrupted Parts 2 | . 1 1 System Corruption 4 | . 3 1 Parts Lost 7 | . 5 2 Power 1 | . . 1 Propulsion 3 | . 3 . Utility . | . . . Weapon 3 | . 2 1 Highest Loss Streak 2 | . 2 2 To Critical Strikes . | . . . Average Slot Usage (%) 82 | . 90 68 Engine 10 | . 14 4 Core 2 | . . 6 Leg 15 | . 23 1 Flight 9 | . 3 20 Device 9 | . 9 10 Storage 8 | . 12 . Processor 5 | . 1 12 Energy Gun 15 | . 16 13 Ballistic Gun 5 | . 8 . Peak Build Rating 21 | 6 7 21 Average Rating 8 | 6 6 11 On Entrance 6 | 6 6 6 Naked Turns . | . . . Heaviest Build 15 | 14 15 11 Greatest Support 20 | 20 20 10 Greatest Overweight (x) 3 | . 1 3 Average Overweight (x) . | . . . Largest Inventory Capacity 8 | 8 8 5 Average Capacity 6 | 8 7 5 Most Carried 5 | 5 5 5 Average Carried 2 | 2 2 3 Final Capacity 8 | 8 5 5 Final Carried 4 | . 4 4 Class Distribution -------------------- 95% | Mutant 4% | Scavenger-Mutant Dominant Class ---------------- Mutant | -10/Materials Mutant | -10/Subcaves Resources | -11 -10 -10 ----------- Run | Yrd Mat Sub Matter Collected 395 | 200 117 78 Remotely . | . . . Salvage Created 712 | . 585 127 Parts 38 | . 29 9 Haulers Intercepted 1 | . 1 . Recyclers Shooed 1 | . 1 . Parts Field Recycled . | . . . Retrieved Matter . | . . . Parts Self-Destructed 6 | . . 6 Prevented . | . . . Kills | -11 -10 -10 ------- Run | Yrd Mat Sub Combat Hostiles Destroyed 14 | . 9 5 Guns 14 | . 9 5 Classes Destroyed 8 | . 7 1 Worker 1 | . 1 . Builder 2 | . 2 . Hauler 1 | . 1 . Recycler 1 | . 1 . Operator 1 | . 1 . Swarmer 5 | . 2 3 Grunt 7 | . 7 . Subdweller 2 | . . 2 Best Kill Streak 7 | . 7 3 Combat Bots Only 3 | . 3 3 Max Kills in Single Turn 2 | . 2 1 Gunslinging . | . . . Exploded . | . . . Melee . | . . . Uniques/NPCs Destroyed . | . . . Combat | -11 -10 -10 -------- Run | Yrd Mat Sub Hostile Shots Fired 107 | . 81 26 Missed 29 | . 21 8 Damage Taken 993 | . 690 303 Core 259 | . 142 117 Absorbed by Shields . | . . . Regen/Repaired (Parts) 13 | . 13 . Core Remaining (%) 100 | 100 . . Volleys Fired 66 | . 40 26 Largest 2 | . 2 2 Hottest 100 | . 100 100 Shots Fired 106 | . 75 31 Gun 106 | . 75 31 Cannon . | . . . Launcher . | . . . Special . | . . . Kinetic 30 | . 30 . Thermal 48 | . 20 28 Explosive . | . . . Electromagnetic 28 | . 25 3 Robot Hit Streak 11 | . 6 11 Robot Miss Streak 5 | . 5 1 Penetration Max . | . . . Secondary Targets 2 | . 2 . Max Gunslinging Chain 1 | . 1 . Shots Hit Robots 64 | . 44 20 Core Hits 33 | . 26 7 Critical Kills . | . . . Critical Parts Destroyed . | . . . Critical Strikes 1 | . . 1 Burn 1 | . . 1 Melee Attacks . | . . . Impact . | . . . Slashing . | . . . Piercing . | . . . Sneak Attacks . | . . . Combat Hostiles . | . . . Follow-up Attacks . | . . . Damage Inflicted 1044 | . 779 265 Guns 850 | . 585 265 Cannons . | . . . Explosions 186 | . 186 . Melee . | . . . Ramming 8 | . 8 . Kinetic 172 | . 172 . Thermal 526 | . 311 215 Explosive . | . . . Electromagnetic 338 | . 288 50 Impact . | . . . Slashing . | . . . Piercing . | . . . Highest Corruption 5 | . 4 5 Average Corruption 4 | . 3 4 Corruption Purged . | . . . Corruption Blocked . | . . . Effects 13 | . 3 10 Matter Fused 5 | . 1 4 Heat Flow Errors 3 | . 1 2 Energy Discharges 4 | . 1 3 Weapon Failures 1 | . . 1 Overload Shots . | . . . Overflow Damage 20 | . 20 . Projectiles . | . . . Explosions 20 | . 20 . Melee . | . . . Knockbacks . | . . . Impact . | . . . Kinetic . | . . . Secondary . | . . . Self-Inflicted Damage 80 | . 80 . Shots 2 | . 2 . Rammed . | . . . Targets Rammed 5 | . 5 . Kicked 5 | . 5 . Crushed . | . . . Highest Temperature 195 | . 195 186 Average Temperature 46 | . 44 67 Received Heat Transfer 258 | . 198 60 Siege Activations . | . . . Robots Corrupted . | . . . Combat Hostiles . | . . . Parts Fried 1 | . 1 . Impact Corruptions . | . . . Robots Melted . | . . . Combat Hostiles . | . . . Parts Melted 1 | . . 1 Heat Transferred 1373 | . 670 703 Parts Sabotaged . | . . . Parts Stolen . | . . . Parts Stripped . | . . . Power Chain Reactions 2 | . 2 . Alert | -11 -10 -10 ------- Run | Yrd Mat Sub Peak Influence 306 | . 306 . Initial . | . . . Average 136 | . 137 . Maximum Alert Level 1 | . 1 . Low Security (%) 83 | 100 83 . Level 1 16 | . 16 . Level 2 . | . . . Level 3 . | . . . Level 4 . | . . . Level 5 . | . . . High Security . | . . . Max Security . | . . . Squads Dispatched 3 | . 3 . Investigation 1 | . 1 . Extermination . | . . . Reinforcement 2 | . 2 . Assault . | . . . Garrison . | . . . Intercept . | . . . Searches Triggered . | . . . Construction Impeded . | . . . Haulers Reinforced . | . . . Active Scanning Responses . | . . . Cargo Convoy Interrupts . | . . . Stealth | -11 -10 -10 --------- Run | Yrd Mat Sub Distress Signals 2 | . 2 . Communications Jammed . | . . . Distress Signals . | . . . Times Spotted 25 | . 17 8 Peak Tracking Total 6 | . 4 6 Tactical Retreats 2 | . . 2 Traps | -11 -10 -10 ------- Run | Yrd Mat Sub Traps Triggered 1 | . 1 . Indirectly . | . . . Trap Hack Attempts . | . . . Triggered . | . . . Disarmed . | . . . Reprogrammed . | . . . Reused . | . . . Traps Extracted . | . . . Installed . | . . . Triggered . | . . . Machines | -11 -10 -10 ---------- Run | Yrd Mat Sub Machines Disabled 2 | . 1 1 Max in Single Turn 1 | . 1 1 Machines Repaired . | . . . Machines Dismantled . | . . . Machines Sabotaged . | . . . Overloaded Fab Kills . | . . . Hacking | -11 -10 -10 --------- Run | Yrd Mat Sub Machines Accessed 7 | . 6 1 Terminals 4 | . 4 . Fabricators . | . . . Repair Stations 1 | . 1 . Recycling Units 1 | . 1 . Scanalyzers . | . . . Garrison Access . | . . . Total Hacks 25 | . 16 9 Successful 16 | . 7 9 Failed 9 | . 9 . Catastrophic 1 | . 1 . Database Lockouts . | . . . Manual 8 | . 8 . Terminals 9 | . 9 . Fabricators . | . . . Repair Stations 2 | . 2 . Recycling Units 5 | . 5 . Scanalyzers . | . . . Garrison Access . | . . . Terminal Hacks 10 | . 1 9 Record 8 | . . 8 Zone Layout 1 | . 1 . Derelict Proto ID Bank 1 | . . 1 Fabricator Hacks . | . . . Repair Station Hacks 2 | . 2 . Scan Component 1 | . 1 . Repair 1 | . 1 . Recycling Unit Hacks 1 | . 1 . Retrieve Components 1 | . 1 . Scanalyzer . | . . . Garrison Access Hacks . | . . . Unauthorized Hacks 3 | . 3 . Terminals 2 | . 2 . Botnet 2 | . 2 . Fabricators . | . . . Repair Stations . | . . . Recycling Units 1 | . 1 . Tunnel 1 | . 1 . Scanalyzers . | . . . Garrison Access . | . . . Data Cores Recovered . | . . . Used . | . . . Hacking Detections 3 | . 3 . Full Trace Events . | . . . Feedback Events . | . . . Feedback Blocked . | . . . Robot Schematics Acquired . | . . . Robots Built . | . . . Authchips . | . . . Time . | . . . Total Robot Build Rating . | . . . Part Schematics Acquired . | . . . Parts Built . | . . . Authchips . | . . . Time . | . . . Total Part Build Rating . | . . . Parts Repaired 1 | . 1 . Time 26 | . 26 . Parts Recycled . | . . . Recycled Matter . | . . . Retrieved Matter . | . . . Retrieved Components . | . . . Parts Scanalyzed . | . . . Part Schematics Acquired . | . . . Parts Damaged . | . . . Bothacking | -11 -10 -10 ------------ Run | Yrd Mat Sub Used RIF Installer . | . . . Robots Hacked . | . . . Non-combat . | . . . Combat . | . . . Robot Hacks Applied . | . . . Relay Couplers Released . | . . . Fabnet Peak Effective % . | . . . Robots Rewired . | . . . Allies Hacked . | . . . Hacks Repelled . | . . . Allies | -11 -10 -10 -------- Run | Yrd Mat Sub Total Allies . | . . . Largest Group . | . . . Highest-Rated Group . | . . . Highest-Rated Ally . | . . . Total Orders . | . . . Ally Attacks . | . . . Total Damage . | . . . Kills . | . . . Allies Corrupted . | . . . Allies Melted . | . . . Intel | -11 -10 -10 ------- Run | Yrd Mat Sub Robot Analysis Total . | . . . Derelict Logs Recovered 1 | . . 1 Drone Launches . | . . . Drone Recoveries . | . . . Exploration | -11 -10 -10 ------------- Run | Yrd Mat Sub Turns Passed 1038 | 4 675 359 Spaces Moved 1013 | 1 478 534 Core 7 | . . 7 Treads . | . . . Legs 360 | 1 338 21 Wheels . | . . . Hover . | . . . Flight 646 | . 140 506 Fastest Speed 37 | 120 37 37 Average Speed 79 | 120 108 52 Slowest Speed 200 | 120 190 200 Overloaded Moves . | . . . Propulsion Burnouts . | . . . Robots Hopped . | . . . Cave-ins Triggered . | . . . Exploration Rate (%) 37 | 2 83 27 Regions Visited 2 Branch Regions 1 Pre-discovered Areas 1 | . 1 . Known Exits Taken 1 | . 1 . Unknown Exits Taken 1 | 1 . . Scrap Searched . | . . . Spaces Dug . | . . . Terrain Destroyed 14 | . 14 . Melee . | . . . Projectile . | . . . AOE 14 | . 14 . Terrain Rammed . | . . . Walls Destroyed . | . . . Machines Disabled . | . . . Actions | -11 -10 -10 --------- Run | Yrd Mat Sub Total 1140 | 6 554 580 Wait 9 | . 9 . Move 1011 | . 477 534 Hop . | . . . Pick Up 12 | . 9 3 Fast Attach 7 | . 2 5 Attach 11 | . 7 4 Detach 7 | . 3 4 Swap 2 | . 1 1 Drop 10 | 6 1 3 Fire 66 | . 40 26 Melee . | . . . Ram . | . . . Kick 5 | . 5 . Crush . | . . . Escape Stasis . | . . . Rewire . | . . . Trap . | . . . Miscellaneous . | . . . Route ------- -11/Scrapyard -10/Materials (discovered 6 exits: [*Mat x3] / *Min x2 / *Sub) -10/Subcaves History --------- Turn | Location | Event 5 | -11/Scrapyard | Discovered new exit (range 0) 5 | -11/Scrapyard | Entered Materials 231 | -10/Materials | Discovered new exit (range 9) 254 | -10/Materials | Discovered new exit (range 16) 308 | -10/Materials | Build established: Mutant 445 | -10/Materials | Core integrity fell below 50% 502 | -10/Materials | Discovered new exit (range 16) 540 | -10/Materials | Repaired Flight Unit? 614 | -10/Materials | Discovered new exit (range 7) 617 | -10/Materials | Identified exit to Mines 622 | -10/Materials | Discovered new exit (range 15) 678 | -10/Materials | Discovered new exit (range 12) 679 | -10/Materials | Identified exit to Subcaves 680 | -10/Materials | Entered Subcaves 716 | -10/Subcaves | Learned 4 Materials zone layouts 728 | -10/Subcaves | A swath of the cavern ceiling suddenly collapsed 805 | -10/Subcaves | Core integrity fell below 20% 864 | -10/Subcaves | Visited 4L-MR0's lab 874 | -10/Subcaves | Found Meta Core 875 | -10/Subcaves | Attached Meta Core, gained temporary slots: Propulsion, Utility, Weapon 941 | -10/Subcaves | Shifting Twisted Machinery released Sub. Power Source 948 | -10/Subcaves | Shifting Twisted Machinery released Hvy. Riot Gun 1039 | -10/Subcaves | Destroyed by S-10 Pest with Light Assault Rifle Last Messages --------------- 00942_ Acquired Sub. Power Source. Hvy. Riot Gun falls loose from the Twisted Machinery. 00952_ System corrupted: Energy discharge (-61). 00952_ Dropped Med. Laser. 00953_ Acquired Hvy. Riot Gun. 00993_ S-10 Pest destroyed. 00997_ Subatomizers dissect the Flight Unit. 00997_ S-10 Pest destroyed. 00998_ Flight Unit fries itself beyond repair. 00999_ Lgt. Ion Engine fries itself beyond repair. 00999_ Flight Unit fries itself beyond repair. 01001_ Acquired 39 matter. 01003_ Lgt. Ion Engine fries itself beyond repair. 01004_ Flight Unit fries itself beyond repair. 01006_ Acquired Flight Unit. 01032_ Dropped Broken Sub. Laser. Map ----- +----------------------------------------------------+ | ?????### ##### """ ## ##???? | | ?????### ### ###### ###??? | | ??????## ### ## ###### ### ##??? | | ??????## #### ## ##### ##### ##??? | | ??????####### ### #### ###### ##??? | | ??????####### #### ## ####?## ##??? | | ??????######## #### " ""###???#######??? | | ????########## #### ""##????#######??? | | ????#### #### #### ##??????????????? | | ????## ## ##### ### ###??????????????? | | ????#### ## ### ##???????????????? | | ??????### ## ##???????????????? | | ??????### #######??????????????? | | ???????## #########?????????????? | | ???????### ### #### ###?????????????? | | ???????#### ### ## ##?????????????? | | ????????######## ##?????????????? | | ?????????###### #### ##?????????????? | | ????????????## ##### ##?????????????? | | ????????????## ###### ####???????????? | | ????????????## ###### ### #########??????? | | ????????????### ##### #### ########???### | | ????????????### #### ####### #####? ## | | ????????????## ### ############ ### # | | ????????????### ### ###???####### "" # | | ????????????### #### @##????????#### """ % # | | ????????????## ### ##?????????####"""" | | ????????????## s##??????????###""" | | ????????????### ???????###""" %## | | ???????????? ### ???????###""" ## | | ?????????????#### ????????## "" ###? | | ??????????????### ## "##????## "?### ? | | ???????????????### [% ### "##?????????###?? | | ???????????????#### ####" """##?????????????? | | ????????????????### ####?########?????????????? | | ?????????????????# ###??########?????????????? | | ????????????????? ##????????????????????????? | | ??????????????## ##????????????????????????? | | ??????????????## ##????????????????????????? | | ??????????????## ##????????????????????????? | | ?????????????????? ????????????????????????? | | ?????????????????????????????????????????????????? | | ?????????????????????????????????????????????????? | | ?????????????????????????????????????????????????? | | ?????????????????????????????????????????????????? | | ?????????????????????????????????????????????????? | | ?????????????????????????????????????????????????? | | ?????????????????????????????????????????????????? | | ?????????????????????????????????????????????????? | | ?????????????????????????????????????????????????? | +----------------------------------------------------+ Best States ------------- Heat Dissipation 25 Energy Generation 17 Energy Capacity 250 Matter Stores 300 Matter Capacity 300 Sight Range 16 Terrain Scan Density 10 Evasion (%) 62 Item Schematics ----------------- None Robot Schematics ------------------ None Fabricated ------------ Nothing Alien Tech Used ----------------- None Achievements -------------- None Challenges ------------ None Game ------ Seed SwordTransmissionSteel Manual? 0 Play Time 00:22:56 Cumulative 285.3 hours Start 2024.10.14 @ 01:27:13 End 2024.10.14 @ 01:51:18 Sessions 1 Manual Loads 0 Difficulty Rogue Special Mode None Game No. 83 Rogue 78 Adventurer 5 Explorer 0 Win Type - Total 8 Types 7/0/0/0/0/1/0/0/0 Lore% 32 Gallery% 56 Achievement% 48 Wizard Run 0 Options --------- Layout 1 ASCII 0 Keyboard 0 Movement Mouse Keybinds 0 Fullscreen 2 Font 24/Smallcaps Map View 50x35 Zoom Use 0% Tactical HUD 1 Map Filters NONE Filters NONE Steam 1 RUN: 7f8a39ac-2541-473a-963e-5b1b95db76b2